{"text_format":"1","workbook":"xlsx","n_sheets":1,"sheets":["E1200248-v2"],"not_rendered":{"charts":0,"images":1,"macros":1,"external_links":0,"defined_names":11,"comments":0,"pivot_tables":0},"unopened":[],"bounds":{"document_bytes":16777216,"sheet_cells":100000,"rows_first":2000,"rows_last":500,"rows_between":2000,"halvings":0,"cell_chars":16384,"cell_head_chars":4096},"cells_cut":0,"cells_raw":0,"read":"whole","date_system":"1900"}

{"sheet":"E1200248-v2","index":0,"n_rows":77,"n_cols":27,"rows_kept":77,"cut":false,"hidden":false,"merged":[[38,19,38,20],[39,0,39,29],[37,15,37,16],[29,22,36,22],[29,23,36,23],[29,25,36,25],[31,26,34,29],[36,8,36,11],[29,24,35,24],[10,2,10,4],[13,2,13,4],[11,2,11,4],[16,2,16,5],[37,3,37,7]]}
[]
[null,"CALIFORNIA INSTITUTE OF TECHNOLOGY"]
[]
[]
[]
[null,"FORMAL DRAWING TREE REFERENCE DOCUMENT"]
[]
[null,"TITLE: ","aLIGO TCS Viewport Enclosure Assembly, H1/L1"]
[null,null,"corresponds to the Production version"]
[]
[null,"DOCUMENT CONTROL NO.:","E1200248",null,null,"-v2"]
[null,"RELATED DOC. CHANGE NO.: ","E1300826",null,null,"-v1"]
[]
[null,"CONTAINING ASSEMBLIES:","D1101627",null,null,"-v3"]
[]
[null,"AUTHOR: ","M. JACOBSON"]
[null,"DATE: ","2013-10-31"]
[]
[null,"PURPOSE: ","This document is the formal reference for necessary revisions of each child of the stated assemblies, and the total necessary quantities for all items."]
[]
[]
[]
[]
[]
[]
[]
[]
[]
[]
["Subsystem:","RH",null,null,null,null,null,null,null,null,null,null,null,null,null,null,null,null,null,null,null,null,"PDR","delta-PDR","FDR","XXX"]
["Reporter:","Mindy Jacobson"]
["Date:","2010-08-09",null,null,null,null,null,null,null,null,null,null,null,null,null,null,null,null,null,null,null,null,null,null,null,null,"RESERVED for\nPROCUREMENT TRACKING"]
[]
[null,"Total No. Dwgs = ",{"$f":"COUNT(#REF!,U41:U77)","v":1}]
[null,"Aggregate %-complete = ",{"$f":"SUM(#REF!,U41:U77)/C34","v":{"$error":"#REF!"}}]
[]
[null,null,null,null,null,null,null,null,"QUANTITY"]
["DCN","NOTES","Level","INDENTURE CHART",null,null,null,null,"REQ'd","SPARE","TOT.","UNITS","DWG TREE REF. NO.","MATERIAL","DCC No.","TYPE\n[config.]",null,"NAME","TYPE","MODEL STATUS","DWG STATUS","SOURCE","REV.","REV.","REV.","REV."]
["No.",null,null,null,null,null,null,null,null,null,null,null,null,null,null,null,null,null,null,"% COMPLETE"]
["                     EXTERNAL TO VACUUM"]
["E1300826","(QTY 1 EA TYPE) x3 IFOs",0,{"$f":"$C41","v":0},0,0,0,0,3,0,{"$f":"J41+I41","v":3},"EA","E1200248",null,"D1101627","-01","-02","VIEWPORT ENCLOSURE ASSY, H1-L1 CO2P TCS","TopAssy",100,90,"MTS","N/A","N/A","v3"]
["E1200247",null,1,1,1,1,1,1,1,0,{"$f":"SUM(J42,I42)","v":1},"EA","E1200248","Al 6061","D1003196","-01","-02","CUSTOM 10-IN VP FLANGE, aLIGO TCS H1-L1","PRT",null,null,"MTS",null,null,"v1"]
[null,"EBARA",1,1,1,1,1,1,24,null,{"$f":"SUM(J43,I43)","v":24},"EA",null,"SSTL",null,null,null,"BOLT, 12-PT FLANGE HEAD, 5/16-24 X 2.5 IN LONG","HW",null,null,"OTS"]
[null,"EBARA",1,1,1,1,1,1,24,null,24,"EA",null,"SSTL",null,null,null,"FLAT WASHER, 5/16, MS 15795-812 OR EQUIV.","HW",null,null,"OTS"]
[null,"EBARA",1,1,1,1,1,1,12,null,{"$f":"SUM(J45,I45)","v":12},"EA",null,"SSTL",null,null,null,"NUT PLATE, 5/16-24","HW",null,null,"OTS"]
[null,null,1,1,1,1,1,1,1,null,1,"EA",null,"Cu",null,null,null,"CONFLAT 10-IN GASKET","HW",null,null,"OTS"]
["E1200247",null,1,1,1,1,1,1,1,0,1,"EA","E1200248","Al 6061","D1201303","-01","-02","PRIMARY VIEWPORT CLAMP, H1-L1 BSC 1 AND 3","PRT",null,null,"MTS",null,null,"v1"]
[null,"HUGHES CIRCUITS",2,2,2,2,2,2,2,1,{"$f":"SUM(J48,I48)","v":3},"EA","E1200248","KAPTON","D1300973",null,null,"KAPTON WASHER-STYLE SHIM","PRT",null,null,"MTS",null,null,"v1"]
[null,"II-VI",2,2,2,2,2,2,1,0,1,"EA","E1200248","ZnSe","D1100439",null,null,"VP ZnSe WINDOW, .5 THICK, 60 MIN WEDGE","PRT",null,null,"MTS",null,null,"v1"]
[null,"ReSOURCE MFG, ACCUGLASS",2,2,2,2,2,2,1,0,{"$f":"SUM(J50,I50)","v":1},"EA","E1200248","PEEK","D1300970",null,null,"WEDGED WASHER-STYLE SHIM","PRT",null,null,"MTS",null,null,"v1"]
[null,"PG&O",2,2,2,2,2,2,1,0,1,"EA","E1200248","FS","D1100540",null,null,"aLIGO TCS .5 IN THICK OPTICAL WINDOW","PRT",null,null,"MTS",null,null,"v1"]
[null,"ReSOURCE MFG, ACCUGLASS",2,2,2,2,2,2,1,0,1,"EA","E1200248","PEEK","D1100495",null,null,"WASHER, CLAMP RING","PRT",null,null,"MTS",null,null,"v3"]
[null,"UC COMPONENTS",1,1,1,1,1,1,6,2,8,"EA",null,"18-8 SSTL","C-2018",null,null,"SHCS 1/4-20 X 1.125 IN LONG","HW",null,null,"OTS"]
["E1200247",null,1,1,1,1,1,1,1,0,1,"EA","E1200248","Al 6061","D1201304","-01","-02","SECONDARY VIEWPORT CLAMP, H1-L1 BSC 1 AND 3","PRT",null,null,"MTS",null,null,"v1"]
[null,"HUGHES CIRCUITS",2,2,2,2,2,2,2,1,3,"EA","E1200248","KAPTON","D1300973",null,null,"KAPTON WASHER-STYLE SHIM","PRT",null,null,"MTS",null,null,"v1"]
[null,"II-VI",2,2,2,2,2,2,1,0,{"$f":"SUM(J56,I56)","v":1},"EA",null,null,"D1100485",null,null,"VP ZnSe WINDOW, .25 THICK, 60 MIN WEDGE","PRT",null,null,"MTS",null,null,"v1"]
[null,null,2,2,2,2,2,2,1,0,1,"EA",null,null,"D1100539",null,null,"aLIGO TCS .25 IN THICK OPTICAL WINDOW","PRT",null,null,"MTS",null,null,"v2"]
[null,"UC COMPONENTS",1,1,1,1,1,1,4,1,5,"EA",null,null,"C-2016",null,null,"SHCS 1/4-20 X 1 IN LONG","HW",null,null,"OTS"]
["E1200247",null,1,1,1,1,1,1,1,0,1,"EA","E1200248","Al 6061","D1201305","-01","-02","COVER, SECONDARY VIEWPORT CLAMP, H1-L1 BSC 1 AND 3","PRT",null,null,"MTS",null,null,"v1"]
["E1200247",null,1,1,1,1,1,1,1,0,1,"EA","E1200248","AISI 304","D1201421","-01","-02","ZnSe VP BEAM BLOCK, SHORT","PRT",null,null,"MTS",null,null,"v2"]
[null,"MCMASTER",1,1,1,1,1,1,1,0,{"$f":"SUM(J61,I61)","v":1},"EA",null,"AISI 304, SBR RUBBER","8981T24",null,null,"CABLE CLAMP, DAMPED, FOR 1/4\" CABLE CLEARANCE","HW",null,null,"OTS"]
[null,"UC COMPONENTS",1,1,1,1,1,1,2,2,4,"EA",null,"18-8 SSTL","WF-08",null,null,"FLAT WASHER, #8, NAS 620-C8L OR EQUIV.","HW",null,null,"OTS"]
[null,"UC COMPONENTS",1,1,1,1,1,1,2,2,4,"EA",null,"18-8 SSTL","C-804",null,null,"SHCS #8-32 X .25 IN LONG","HW",null,null,"OTS"]
["E1200247",null,1,1,1,1,1,1,1,0,1,"EA","E1200248","AISI 304","D1201420",null,null,"ZnSe VP BEAM BLOCK, LONG","PRT",null,null,"MTS",null,null,"v1"]
[null,"UC COMPONENTS",1,1,1,1,1,1,8,2,10,"EA",null,"18-8 SSTL","WF-06",null,null,"FLAT WASHER, #6, NAS 620-C6L OR EQUIV.","HW",null,null,"OTS"]
[null,"UC COMPONENTS",1,1,1,1,1,1,8,2,10,"EA",null,"18-8 SSTL","C-608",null,null,"SHCS #6-32 X .5 IN LONG","HW",null,null,"OTS"]
[null,"UC COMPONENTS",1,{"$f":"$C67","v":1},1,1,1,1,8,2,10,"EA",null,"18-8 SSTL","WF-10",null,null,"FLAT WASHER, #10, NAS 1149-C10L OR EQUIV.","HW",null,null,"OTS"]
[null,"UC COMPONENTS",1,1,1,1,1,1,8,2,10,"EA",null,"18-8 SSTL","C-1012",null,null,"SHCS #10-32 X .75 IN LONG","HW",null,null,"OTS"]
["E1200247",null,1,1,1,1,1,1,1,0,1,"EA","E1200248",null,"D1201528","-01","-02","IR SENSOR SUBASSEMBLY","ASSY",null,null,"MTS",null,null,"v1"]
["E1200247",null,2,2,2,2,2,2,1,0,1,"EA","E1200248","AISI 304","D1201507","-01","-02","SUPPORT BLOCK, IR SENSOR","PRT",null,null,"MTS",null,null,"v1"]
[null,"OMEGA",2,2,2,2,2,2,1,0,1,"EA",null,"SSTL BODY","OS36SM-K-1xxF",null,null,"OMEGA SUBMINI IR SENSOR","PRT",null,null,"OTS"]
[null,"MCMASTER",2,2,2,2,2,2,1,0,1,"EA",null,"PEEK","6627K14",null,null,"FLANGED SLEEVE BEARING, 1/4\" ID, 5/16\" OD, 1/2\" LONG","HW",null,null,"OTS"]
[null,"UC COMPONENTS",2,2,2,2,2,2,1,1,2,"EA",null,"18-8 SSTL","WF-08",null,null,"FLAT WASHER, #8, NAS 620-C8L OR EQUIV.","HW",null,null,"OTS"]
[null,"UC COMPONENTS",2,2,2,2,2,2,1,1,2,"EA",null,"18-8 SSTL","C-812",null,null,"SHCS #8-32 X .75 IN LONG","HW",null,null,"OTS"]
[null,"UC COMPONENTS",2,2,2,2,2,2,1,1,2,"EA",null,"18-8 SSTL","N-832",null,null,"HEX NUT, #8-32","HW",null,null,"OTS"]
[null,"MCMASTER",2,2,2,2,2,2,1,0,1,"EA",null,"AISI 304","53175K21",null,null,"MINI BOLT TUBE CLAMP, ID RANGE .2967 TO .3281","HW",null,null,"OTS"]
[null,"UC COMPONENTS",1,1,1,1,1,1,2,2,{"$f":"SUM(J77,I77)","v":4},"EA",null,"18-8 SSTL","FA-606",null,null,"FHSCS #6-32 X .375 IN LONG","HW",null,null,"OTS"]